bitfinex/quotes_BTCUSD_20251214
["timestamp","ask_amount","ask_price","bid_price","bid_amount"]
[1765716878939,0.52006255,89590.0,89589.0,0.00104732]
[1765716879344,0.52006255,89590.0,89589.0,0.00304732]
[1765716879562,0.01116569,89560.0,89557.0,0.03976109]
[1765716879780,0.22333354,89553.0,89551.0,0.03976109]
[1765716880008,0.23957354,89553.0,89551.0,0.04176028]
[1765716880230,0.23957354,89553.0,89551.0,0.00199919]
[1765716880231,0.0343,89552.0,89551.0,0.00199919]
[1765716880437,0.05054,89552.0,89551.0,0.00199919]
[1765716881675,0.0326,89552.0,89551.0,0.00199919]
[1765716881882,0.01636,89552.0,89551.0,0.00199919]
[1765716882086,0.02036,89552.0,89551.0,0.00199919]
[1765716884264,0.0433,89552.0,89551.0,0.00199919]
[1765716885447,0.02036,89552.0,89551.0,0.00199919]
[1765716885646,0.0433,89552.0,89551.0,0.00199919]
[1765716885850,0.05954,89552.0,89551.0,0.00199919]
[1765716893682,0.0366,89552.0,89551.0,0.00199919]
[1765716894455,0.05954,89552.0,89551.0,0.00199919]
[1765716895482,0.0366,89552.0,89551.0,0.00199919]
[1765716895675,0.02036,89552.0,89551.0,0.00199919]
[1765716895955,0.009,89552.0,89551.0,0.00199919]
[1765716900351,0.009,89552.0,89551.0,0.00793919]
[1765716900573,0.009,89552.0,89551.0,0.04310347]
[1765716900742,0.009,89552.0,89551.0,0.03171919]
[1765716901330,0.005,89552.0,89551.0,0.04200406]
[1765716902561,0.01116482,89567.0,89564.0,0.0111652]
[1765716902745,0.0111647,89568.0,89565.0,0.01116507]
[1765716903434,0.0111647,89568.0,89564.0,0.01277807]
[1765716903435,0.01116482,89567.0,89564.0,0.00161287]
[1765716903580,0.23446134,89567.0,89564.0,0.00161287]
[1765716903809,0.23446134,89567.0,89564.0,0.00561287]
[1765716903981,0.23446134,89567.0,89565.0,0.003]
[1765716904317,0.23446134,89567.0,89564.0,0.00561287]
[1765716904912,0.01116482,89567.0,89564.0,0.00561287]
[1765716905456,0.22329901,89566.0,89564.0,0.00561287]
[1765716905657,0.22329901,89566.0,89564.0,0.00861287]
[1765716905990,0.01116482,89567.0,89564.0,0.00461287]
[1765716906378,0.01116482,89567.0,89565.0,0.004]
[1765716906578,0.22329901,89566.0,89565.0,0.004]
[1765716906794,0.01116482,89567.0,89564.0,0.00461287]
[1765716906992,0.01116482,89567.0,89564.0,0.00161287]
[1765716907194,0.01116482,89567.0,89564.0,0.00561287]
[1765716907439,0.01116482,89567.0,89564.0,0.01455287]
[1765716907704,0.01116457,89569.0,89565.0,0.01116507]
[1765716907848,0.22328655,89571.0,89568.0,0.0230547]
[1765716908159,0.01116407,89573.0,89570.0,0.01189]
[1765716908357,0.01116407,89573.0,89568.0,0.01277757]
[1765716908358,0.01116407,89573.0,89571.0,0.01189]
[1765716908595,0.01116432,89571.0,89568.0,0.01277757]
[1765716908792,0.01116432,89571.0,89568.0,0.00161287]
[1765716909284,0.01116432,89571.0,89568.0,0.00361287]
[1765716910415,0.23445269,89571.0,89568.0,0.00361287]
[1765716910638,0.01116432,89571.0,89568.0,0.00361287]
[1765716910756,0.01116407,89573.0,89569.0,0.01116457]
[1765716910975,0.22328843,89571.0,89568.0,0.00661287]
[1765716911177,0.0111642,89572.0,89568.0,0.2410714]
[1765716911382,0.01116432,89571.0,89568.0,0.01777757]
[1765716912028,0.01116432,89571.0,89568.0,0.01477757]
[1765716912279,0.01116432,89571.0,89569.0,0.003]
[1765716912949,0.0111642,89572.0,89569.0,0.23445611]
[1765716913147,0.0111642,89572.0,89569.0,0.01116457]
[1765716913944,0.0111642,89572.0,89569.0,0.01316457]
[1765716914153,0.0111642,89572.0,89569.0,0.01616457]
[1765716914765,0.2344488,89572.0,89569.0,0.005]
[1765716914976,0.2344488,89572.0,89569.0,0.003]
[1765716915227,0.01116432,89571.0,89568.0,0.00161287]
[1765716915450,0.01116432,89571.0,89569.0,0.002]
[1765716915637,0.01116432,89571.0,89569.0,0.005]
[1765716916063,0.01116432,89571.0,89569.0,0.003]
[1765716916234,0.01116432,89571.0,89568.0,0.00161287]
[1765716916441,0.02391,89571.0,89568.0,0.01777757]
[1765716916736,0.0111642,89572.0,89568.0,0.23907019]
[1765716916938,0.0111642,89572.0,89569.0,0.002]
[1765716917911,0.0111642,89572.0,89571.0,0.00594]
[1765716918462,0.0353,89579.0,89571.0,0.00594]
[1765716918463,0.01116345,89578.0,89575.0,0.01116382]
[1765716918878,0.01116345,89578.0,89574.0,0.01116395]
[1765716919912,0.22325793,89583.0,89577.0,0.01189]
[1765716920113,0.0111627,89584.0,89582.0,0.01189]
[1765716920350,0.23441862,89584.0,89582.0,0.01189]
[1765716920766,0.01116295,89582.0,89579.0,0.01116333]
[1765716921354,0.23442388,89582.0,89579.0,4.733e-05]
[1765716921975,0.22326402,89581.0,89579.0,4.733e-05]
[1765716922191,0.33532956,89581.0,89579.0,4.733e-05]
[1765716923173,0.33632956,89581.0,89579.0,4.733e-05]
[1765716924764,0.03985,89580.0,89579.0,4.733e-05]
[1765716925794,0.04485,89580.0,89579.0,4.733e-05]
[1765716926311,0.04985,89580.0,89579.0,4.733e-05]
[1765716929532,0.07775801,89580.0,89579.0,4.733e-05]
[1765716931235,0.04985,89580.0,89579.0,4.733e-05]
[1765716935824,0.07775801,89580.0,89579.0,4.733e-05]
[1765716936768,0.18982355,89580.0,89579.0,4.733e-05]
[1765716944139,0.23984194,89580.0,89579.0,4.733e-05]
[1765716945614,0.21193393,89580.0,89579.0,4.733e-05]
[1765716945815,0.23984194,89580.0,89579.0,4.733e-05]
[1765716946374,0.23484194,89580.0,89579.0,4.733e-05]
[1765716946576,0.22984194,89580.0,89579.0,4.733e-05]
[1765716946777,0.22984194,89580.0,89579.0,0.00404733]
[1765716947183,0.22984194,89580.0,89579.0,0.00204733]
[1765716947386,0.01116632,89555.0,89552.0,0.03985639]
[1765716947606,0.01124819,89555.0,89551.0,0.03985639]
[1765716947781,0.04480644,89554.0,89551.0,0.03985639]
[1765716947982,0.22333392,89552.0,89551.0,0.03985639]
[1765716948183,0.22333392,89552.0,89550.0,0.04009806]
[1765716949093,0.02325,89551.0,89550.0,0.04009806]
[1765716949552,0.22333392,89552.0,89550.0,0.04009806]
[1765716949760,0.22433392,89552.0,89550.0,0.04009806]
[1765716949966,0.22333392,89552.0,89550.0,0.04009806]
[1765716950384,0.22333392,89552.0,89550.0,0.00024167]
[1765716950621,0.001,89551.0,89550.0,0.00024167]
[1765716950979,0.22333392,89552.0,89550.0,0.00024167]
[1765716951177,0.03849,89551.0,89550.0,0.00024167]
[1765716951382,0.002,89551.0,89550.0,0.00024167]
[1765716952085,0.22433392,89552.0,89550.0,0.00024167]
[1765716952487,0.003,89551.0,89550.0,0.00024167]
[1765716952935,0.005,89551.0,89550.0,0.00024167]
[1765716953240,0.002,89551.0,89550.0,0.00024167]
[1765716953422,0.22333392,89552.0,89550.0,0.00024167]
[1765716953781,0.003,89551.0,89550.0,0.00024167]
[1765716954178,0.22333392,89552.0,89550.0,0.00024167]
[1765716954632,0.22633605,89552.0,89550.0,0.00024167]
[1765716955015,0.22933605,89552.0,89550.0,0.00024167]
[1765716956632,0.006,89552.0,89550.0,0.00024167]
[1765716957626,0.22933569,89552.0,89550.0,0.00024167]
[1765716959236,0.006,89552.0,89550.0,0.00024167]
[1765716959854,0.22933561,89552.0,89550.0,0.00024167]
[1765716960450,0.006,89552.0,89550.0,0.00024167]
[1765716961723,0.22933558,89552.0,89550.0,0.00024167]
[1765716963919,0.006,89552.0,89550.0,0.00024167]
[1765716965465,0.006,89552.0,89550.0,0.22357899]
[1765716967222,0.006,89552.0,89550.0,0.00024167]
[1765716967632,0.22933606,89552.0,89550.0,0.00024167]
[1765716967810,0.006,89552.0,89550.0,0.00024167]
[1765716969665,0.006,89552.0,89551.0,0.24872929]
[1765716970861,0.003,89552.0,89551.0,0.24872929]
[1765716971374,8.187e-05,89555.0,89554.0,0.22332894]
[1765716971578,8.187e-05,89555.0,89554.0,0.23683181]
[1765716971739,8.187e-05,89555.0,89554.0,0.24872181]
[1765716972168,8.187e-05,89555.0,89554.0,0.25988713]
[1765716972727,8.187e-05,89555.0,89554.0,0.29983674]
[1765716973365,0.00108187,89555.0,89554.0,0.29983674]
[1765716974082,0.00108187,89555.0,89554.0,0.25988713]
[1765716974514,0.00208187,89555.0,89554.0,0.25988713]
[1765716975169,0.00208187,89555.0,89554.0,0.24799713]
[1765716977070,0.00208187,89555.0,89554.0,0.01277819]
[1765716977280,0.00208187,89555.0,89554.0,0.05275743]
[1765716978283,0.00208187,89555.0,89554.0,0.27608637]
[1765716978482,0.00208187,89555.0,89554.0,0.29986637]
[1765716978726,0.00208187,89555.0,89554.0,0.28797637]
[1765716979048,0.00208187,89555.0,89554.0,0.27608637]
[1765716979959,0.00208187,89555.0,89554.0,0.05275743]
[1765716982477,0.00208187,89555.0,89554.0,0.04159211]
[1765716984460,0.00208187,89555.0,89554.0,0.05348211]
[1765716984670,0.00208187,89555.0,89554.0,0.06537211]
[1765716987229,0.00208187,89555.0,89554.0,0.05348211]
[1765716988199,0.00208187,89555.0,89554.0,0.04159211]
[1765716991390,0.00208187,89555.0,89554.0,0.00161287]
[1765716992395,0.26386831,89555.0,89553.0,0.01116607]
[1765716992527,0.0274,89554.0,89553.0,0.01116607]
[1765716992733,0.22333143,89553.0,89552.0,0.04000548]
[1765716992933,0.23916143,89553.0,89552.0,0.04000548]
[1765716993152,0.26179143,89553.0,89552.0,0.04000548]
[1765716994614,0.26479143,89553.0,89552.0,0.04000548]
[1765716994816,0.26679143,89553.0,89552.0,0.04000548]
[1765716995596,0.22333642,89551.0,89550.0,0.00024167]
[1765716995933,0.23916642,89551.0,89550.0,0.00024167]
[1765716996097,0.26179642,89551.0,89550.0,0.00024167]
[1765716997056,0.26579642,89551.0,89550.0,0.00024167]
[1765717002915,0.26379642,89551.0,89550.0,0.00024167]
[1765717003118,0.26579642,89551.0,89550.0,0.00024167]
[1765717003276,0.26379642,89551.0,89550.0,0.00024167]
[1765717003679,0.31381481,89551.0,89550.0,0.00024167]
[1765717003897,0.31481481,89551.0,89550.0,0.00024167]
[1765717004318,0.31681481,89551.0,89550.0,0.00024167]
[1765717005609,0.3473557,89551.0,89550.0,0.00024167]
[1765717005834,0.3473557,89551.0,89550.0,0.00524167]
[1765717006478,0.3453557,89551.0,89550.0,0.00524167]
[1765717006697,0.3453557,89551.0,89550.0,0.01024167]
[1765717006916,0.3463557,89551.0,89550.0,0.01024167]
[1765717008655,0.6370557,89551.0,89550.0,0.01024167]
[1765717018089,0.6370557,89551.0,89526.0,0.0004]
[1765717018090,0.22339629,89527.0,89526.0,0.0004]
[1765717018407,0.41448022,89527.0,89526.0,0.0004]
[1765717018640,0.43817022,89527.0,89526.0,0.0004]
[1765717019224,0.43817022,89527.0,89526.0,0.0044]
[1765717019225,0.43825205,89527.0,89526.0,0.0044]
[1765717019619,0.43925205,89527.0,89526.0,0.0104]
[1765717021028,0.47280239,89527.0,89526.0,0.0104]
[1765717021659,0.36073685,89527.0,89526.0,0.0104]
[1765717021837,0.30349651,89527.0,89526.0,0.0104]
[1765717022206,0.00108183,89527.0,89526.0,0.0104]
[1765717022388,0.00108183,89527.0,89526.0,0.02229]
[1765717022609,0.00108183,89527.0,89526.0,0.0104]
[1765717022918,8.183e-05,89527.0,89526.0,0.0044]
[1765717023323,0.00108183,89527.0,89526.0,0.0084]
[1765717023459,8.183e-05,89527.0,89526.0,0.0044]
[1765717023653,8.183e-05,89527.0,89526.0,0.00112523]
[1765717023858,0.00108183,89527.0,89526.0,0.00712523]
[1765717024082,0.00108183,89527.0,89526.0,0.00912523]
[1765717024447,0.00108183,89527.0,89526.0,0.00712523]
[1765717024882,0.00108183,89527.0,89526.0,0.01112523]
[1765717025691,0.00108183,89527.0,89526.0,0.0246281]
[1765717025896,0.00108183,89527.0,89526.0,0.0365181]
[1765717026336,0.00108183,89527.0,89526.0,0.0246281]
[1765717027237,0.00108183,89527.0,89526.0,0.0365181]
[1765717028644,0.00108183,89527.0,89526.0,0.0127381]
[1765717029417,0.06933636,89527.0,89526.0,0.0127381]
[1765717030444,0.02900636,89527.0,89526.0,0.0127381]
[1765717030644,0.04141183,89527.0,89526.0,0.0127381]
[1765717030810,0.00108183,89527.0,89526.0,0.0127381]
[1765717031016,0.00108183,89527.0,89526.0,0.0246281]
[1765717031820,0.00108183,89527.0,89526.0,0.0365181]
[1765717033321,0.00108183,89527.0,89526.0,0.0127381]
[1765717036298,0.01772183,89527.0,89526.0,0.0127381]
[1765717036499,0.04141183,89527.0,89526.0,0.0127381]
[1765717037005,0.01772183,89527.0,89526.0,0.0127381]
[1765717038539,0.00108183,89527.0,89526.0,0.0127381]
[1765717043558,0.00108183,89527.0,89526.0,0.0246281]
[1765717044010,0.00108183,89527.0,89526.0,0.0127381]
[1765717048584,0.05924183,89527.0,89526.0,0.01112523]
[1765717049803,0.13718475,89527.0,89526.0,0.01112523]
[1765717050363,0.17073461,89527.0,89526.0,0.01112523]
[1765717050563,0.47190033,89527.0,89526.0,0.01112523]
[1765717050733,0.4439758,89527.0,89526.0,0.01112523]
[1765717052262,0.43351008,89527.0,89526.0,0.01112523]
[1765717052464,0.56413464,89519.0,89518.0,0.0004]
[1765717052637,0.59189464,89519.0,89518.0,0.0004]
[1765717052802,0.61473464,89519.0,89518.0,0.0004]
[1765717053006,0.61920871,89519.0,89518.0,0.0004]
[1765717055092,0.61920871,89519.0,89518.0,0.0014]
[1765717055664,0.63884871,89519.0,89518.0,0.0014]
[1765717058091,0.63884871,89519.0,89518.0,0.0016418]
[1765717059969,0.63884871,89519.0,89518.0,1.8e-06]
[1765717064750,0.75979252,89519.0,89518.0,1.8e-06]
[1765717064942,0.05001839,89500.0,89498.0,0.0004]
[1765717065086,0.01117305,89501.0,89498.0,0.0004]
[1765717065087,0.74958338,89499.0,89498.0,0.0004]
[1765717065315,0.72165011,89499.0,89498.0,0.0004]
[1765717065484,0.72685011,89499.0,89498.0,0.00100466]
[1765717065712,0.74896472,89499.0,89498.0,0.00100466]
[1765717066297,0.75196472,89499.0,89498.0,0.00239098]
[1765717066515,0.74896472,89499.0,89498.0,0.00139098]
[1765717066941,0.75096472,89499.0,89498.0,0.00239098]
[1765717067157,0.75096472,89499.0,89498.0,0.00439098]
[1765717074391,0.77158976,89499.0,89498.0,0.00439098]
[1765717074530,0.75096472,89499.0,89498.0,0.00439098]
[1765717074732,0.75096472,89499.0,89490.0,0.0004]
[1765717074733,0.51418616,89491.0,89490.0,0.0004]
[1765717074932,0.59235021,89491.0,89490.0,0.0004]
[1765717075136,0.61519021,89491.0,89490.0,0.00064191]
[1765717075339,0.61966554,89491.0,89490.0,0.00064191]
[1765717075836,0.32896554,89491.0,89490.0,0.00364191]
[1765717076091,0.32996554,89491.0,89490.0,0.00564191]
[1765717077814,0.34313021,89491.0,89490.0,0.00564191]
[1765717080906,0.30413021,89491.0,89490.0,0.00564191]
[1765717081219,0.33168021,89491.0,89490.0,0.00564191]
[1765717089147,0.30781021,89491.0,89490.0,0.00564191]
[1765717089365,0.29253021,89491.0,89490.0,0.00564191]
[1765717089786,0.30781021,89491.0,89490.0,0.00564191]
[1765717089991,0.33168021,89491.0,89490.0,0.00564191]
[1765717107364,0.34215832,89491.0,89490.0,0.00564191]
[1765717108166,0.58635832,89491.0,89490.0,0.00564191]
[1765717108366,0.58635832,89491.0,89490.0,0.00064191]
[1765717108367,0.58535832,89491.0,89490.0,0.00064191]
[1765717108571,0.87605832,89491.0,89490.0,0.00064191]
[1765717108746,0.90319868,89491.0,89490.0,0.00164191]
[1765717111669,0.90319868,89491.0,89489.0,0.0004]
[1765717111670,0.34071839,89490.0,89489.0,1.91e-06]
[1765717111880,0.41382686,89490.0,89489.0,1.91e-06]
[1765717113386,0.41582686,89490.0,89489.0,0.00100191]
[1765717118825,0.41582686,89490.0,89489.0,1.91e-06]
[1765717119035,0.41582686,89490.0,89475.0,0.0004]
[1765717119036,0.27354201,89476.0,89475.0,0.0004]
[1765717119257,0.31774201,89476.0,89475.0,0.0004]
[1765717119486,0.34105201,89476.0,89475.0,0.0004]
[1765717120329,0.63175201,89476.0,89475.0,0.0004]
[1765717120540,0.63275201,89476.0,89475.0,0.0014]
[1765717121005,0.63275201,89476.0,89475.0,0.0044]
[1765717121426,0.63275201,89476.0,89475.0,0.0014]
[1765717122303,0.74225963,89476.0,89475.0,0.0004]
[1765717122684,0.74625963,89476.0,89475.0,0.0014]
[1765717123341,0.77035231,89476.0,89475.0,0.0014]
[1765717123553,0.65984469,89476.0,89475.0,0.0014]
[1765717123755,0.63575201,89476.0,89475.0,0.0014]
[1765717123956,0.61811201,89476.0,89475.0,0.0014]
[1765717124112,0.63575201,89476.0,89475.0,0.0014]
[1765717128522,0.34505201,89476.0,89475.0,0.0014]
[1765717130212,0.63575201,89476.0,89475.0,0.0014]
[1765717135050,0.34071839,89475.0,89474.0,1.97e-06]
[1765717135251,0.37920839,89475.0,89474.0,1.97e-06]
[1765717136318,0.38220839,89475.0,89474.0,0.00100197]
[1765717137822,0.2735595,89469.0,89461.0,0.0004]
[1765717138024,0.27357699,89462.0,89461.0,0.0004]
[1765717138226,0.34091699,89462.0,89461.0,0.0004]
[1765717138640,0.34091699,89462.0,89461.0,0.00079329]
[1765717139155,0.34577942,89462.0,89461.0,0.00079329]
[1765717139448,0.34677942,89462.0,89461.0,0.00179329]
[1765717139859,0.34677942,89462.0,89461.0,0.00379329]
[1765717140311,0.34577942,89462.0,89461.0,0.00079329]
[1765717140488,0.34877942,89462.0,89461.0,0.00179329]
[1765717140655,0.34877942,89462.0,89461.0,0.00279329]
[1765717143770,0.59297942,89462.0,89461.0,0.00279329]
[1765717150111,0.52018103,89462.0,89461.0,0.00440616]
[1765717150718,0.57019942,89462.0,89461.0,0.00440616]
[1765717150925,0.59297942,89462.0,89461.0,0.00440616]
[1765717152053,0.31972082,89462.0,89461.0,0.00440616]
[1765717152251,0.00338566,89462.0,89461.0,0.02223616]
[1765717152475,0.00338566,89462.0,89461.0,0.03412616]
[1765717152720,0.00338566,89462.0,89461.0,0.03312616]
[1765717152927,0.00038566,89462.0,89461.0,0.03212616]
[1765717153132,0.01038566,89462.0,89461.0,0.03312616]
[1765717154310,0.01038566,89462.0,89461.0,0.03212616]
[1765717154509,0.01038566,89462.0,89461.0,0.07223703]
[1765717154711,0.01538566,89462.0,89461.0,0.08341383]
[1765717155348,0.00038566,89462.0,89461.0,0.04330296]
[1765717155670,0.00438566,89462.0,89461.0,0.04330296]
[1765717155873,0.01238566,89462.0,89461.0,0.04330296]
[1765717156079,0.00038566,89462.0,89461.0,0.04330296]
[1765717156540,0.00838566,89462.0,89461.0,0.04330296]
[1765717157158,0.00038566,89462.0,89461.0,0.04330296]
[1765717157660,0.00338566,89462.0,89461.0,0.04330296]
[1765717157897,0.00038566,89462.0,89461.0,0.04330296]
[1765717158175,0.00038566,89462.0,89461.0,0.10333502]
[1765717158399,0.00338566,89462.0,89461.0,0.04330296]
[1765717158605,0.01138566,89462.0,89461.0,0.04430296]
[1765717159175,0.01138566,89462.0,89461.0,0.06194296]
[1765717160182,0.01138566,89462.0,89461.0,0.07557957]
[1765717162275,0.01138566,89462.0,89461.0,0.05793957]
[1765717162474,0.01138566,89462.0,89461.0,0.07557957]
[1765717164233,0.01138566,89462.0,89461.0,0.11554726]
[1765717167372,0.01138566,89462.0,89461.0,0.07557957]
[1765717167840,0.01138566,89462.0,89461.0,0.06194296]
[1765717171715,0.01138566,89462.0,89461.0,0.04430296]
[1765717171852,0.01138566,89462.0,89461.0,0.06194296]
[1765717172805,0.01138566,89462.0,89461.0,0.07557957]
[1765717173977,0.01138566,89462.0,89461.0,0.11554726]
[1765717174968,0.01138566,89462.0,89461.0,0.07557957]
[1765717178320,0.01138566,89462.0,89461.0,0.13561163]
[1765717179296,0.01138566,89462.0,89461.0,0.07557957]
[1765717192371,0.01138566,89462.0,89461.0,0.06194296]
[1765717193363,0.01138566,89462.0,89461.0,0.04430296]
[1765717199724,0.01138566,89462.0,89461.0,0.03312616]
[1765717200727,0.01138566,89462.0,89461.0,0.00934616]
[1765717200983,0.05187566,89462.0,89461.0,0.00340616]
[1765717201388,0.05187566,89462.0,89461.0,0.00179329]
[1765717201771,0.01138566,89462.0,89461.0,0.00179329]
[1765717204886,0.03522566,89462.0,89461.0,0.00179329]
[1765717205053,0.05187566,89462.0,89461.0,0.00179329]
[1765717206622,0.01138566,89462.0,89461.0,0.00179329]
[1765717207066,0.01138566,89462.0,89461.0,0.22535439]
[1765717207285,0.02803566,89462.0,89461.0,0.00179329]
[1765717207515,0.32545265,89462.0,89461.0,0.00179329]
[1765717207735,0.05001839,89461.0,89460.0,0.0004]
[1765717207940,0.09050839,89461.0,89460.0,0.0004]
[1765717208176,0.05001839,89461.0,89460.0,0.0004]
[1765717208593,0.05001839,89461.0,89460.0,0.02776]
[1765717208798,0.05001839,89461.0,89460.0,0.01408]
[1765717209002,0.05001839,89461.0,89460.0,0.0004]
[1765717209840,0.09050839,89461.0,89460.0,0.0004]
[1765717210236,0.05101839,89461.0,89460.0,0.0004]
[1765717210365,0.09650839,89461.0,89460.0,0.0004]
[1765717212201,0.12445352,89461.0,89460.0,0.0004]
[1765717213934,0.10061352,89461.0,89460.0,0.0004]
[1765717214310,0.05601839,89461.0,89460.0,0.0004]
[1765717214703,0.006,89461.0,89460.0,0.01408]
[1765717214909,0.006,89461.0,89460.0,0.0004]
[1765717215318,0.04649,89461.0,89460.0,0.0004]
[1765717215935,0.07443513,89461.0,89460.0,0.0004]
[1765717216801,0.50762295,89461.0,89460.0,0.0004]
[1765717217050,0.38720839,89461.0,89460.0,0.0004]
[1765717217217,0.006,89461.0,89460.0,0.02776]
[1765717217768,0.006,89461.0,89460.0,0.01408]
[1765717217942,0.2295611,89461.0,89460.0,0.0004]
[1765717222747,0.006,89461.0,89460.0,0.0004]
[1765717225626,0.03394513,89461.0,89460.0,0.0004]
[1765717232520,0.09941352,89461.0,89460.0,0.0004]
[1765717232723,0.09616839,89461.0,89460.0,0.0004]
[1765717233458,0.07146839,89461.0,89460.0,0.0004]
[1765717233633,0.07365839,89461.0,89460.0,0.0004]
[1765717236078,0.05601839,89461.0,89460.0,0.0004]
[1765717236257,0.09616839,89461.0,89460.0,0.0004]
[1765717237219,0.12411352,89461.0,89460.0,0.0004]
[1765717239608,0.11476554,89461.0,89460.0,0.0004]
[1765717241091,0.12411352,89461.0,89460.0,0.0004]
[1765717251392,0.38686839,89461.0,89460.0,0.0004]
[1765717251594,0.34071839,89457.0,89456.0,0.0004]
[1765717251811,0.36779839,89457.0,89456.0,0.0004]
[1765717252014,0.39249839,89457.0,89456.0,0.0004]
[1765717252418,0.40033298,89457.0,89456.0,0.0004]
[1765717253159,0.40333298,89457.0,89456.0,0.0004]
[1765717254479,0.40333298,89457.0,89456.0,0.0014]
[1765717255305,0.40033298,89457.0,89456.0,0.0014]
[1765717255711,0.40533298,89457.0,89456.0,0.0014]
[1765717255861,0.47693653,89457.0,89456.0,0.0004]
[1765717256266,0.40433298,89457.0,89456.0,0.0004]
[1765717256651,0.40333298,89457.0,89456.0,0.0004]
[1765717256851,0.40333298,89457.0,89456.0,0.0014]
[1765717257059,0.40033298,89457.0,89456.0,0.0014]
[1765717257536,0.40533298,89457.0,89456.0,0.0014]
[1765717258023,0.40533298,89457.0,89456.0,0.0004]
[1765717259436,0.40633298,89457.0,89456.0,0.0004]
[1765717260183,0.5168406,89457.0,89456.0,0.0004]
[1765717260387,0.05001839,89441.0,89424.0,0.01364461]
[1765717260636,0.61074198,89440.0,89420.0,0.00594]
[1765717260811,0.61074198,89440.0,89431.0,0.00774]
[1765717261011,0.24125359,89440.0,89431.0,0.00774]
[1765717261215,0.24125359,89440.0,89439.0,0.0005137]
[1765717261416,0.28160359,89440.0,89439.0,0.0005137]
[1765717261821,0.33162198,89440.0,89439.0,0.0005137]
[1765717262226,0.29127198,89440.0,89439.0,0.0005137]
[1765717262648,0.29127198,89440.0,89439.0,0.0025137]
[1765717262849,0.29227198,89440.0,89439.0,0.0025137]
[1765717263050,0.31498198,89440.0,89439.0,0.0005137]
[1765717263586,0.31398198,89440.0,89439.0,0.0025137]
[1765717263788,0.31498198,89440.0,89439.0,0.0025137]
[1765717263948,0.31398198,89440.0,89439.0,0.0005137]
[1765717264361,0.31398198,89440.0,89439.0,0.0025137]
[1765717264915,0.33162198,89440.0,89439.0,0.0025137]
[1765717265324,0.33262198,89440.0,89439.0,0.0025137]
[1765717265528,0.33262198,89440.0,89439.0,0.0005137]
[1765717265705,0.33162198,89440.0,89439.0,0.0005137]
[1765717265911,0.33162198,89440.0,89439.0,0.0035137]
[1765717266358,0.33162198,89440.0,89439.0,0.0005137]
[1765717266577,0.33262198,89440.0,89439.0,0.0025137]
[1765717266785,0.33162198,89440.0,89439.0,0.0025137]
[1765717267202,0.33362198,89440.0,89439.0,0.0005137]
[1765717267450,0.33362198,89440.0,89439.0,0.0015137]
[1765717268081,0.22369112,89409.0,89408.0,0.0004]
[1765717268278,0.24982112,89409.0,89408.0,0.0004]
[1765717268484,0.27358112,89409.0,89408.0,0.0004]
[1765717268720,0.22369112,89409.0,89408.0,0.0004]
[1765717268927,0.23487065,89411.0,89408.0,0.01408]
[1765717269140,0.01118368,89416.0,89410.0,0.0264773]
[1765717269344,0.00038519,89411.0,89410.0,0.00161287]
[1765717269752,0.00038519,89411.0,89410.0,0.01529287]
[1765717270161,0.00438519,89411.0,89410.0,0.00161287]
[1765717270574,0.00038519,89411.0,89410.0,0.02897287]
[1765717270778,0.00038519,89411.0,89410.0,0.01529287]
[1765717270978,0.00038519,89411.0,89410.0,0.04264136]
[1765717271184,0.00038519,89411.0,89410.0,0.02897287]
[1765717271982,0.00438519,89411.0,89410.0,0.02897287]
[1765717272163,0.01238519,89411.0,89410.0,0.02897287]
[1765717272789,0.01238519,89411.0,89410.0,0.00161287]
[1765717273901,0.01238519,89411.0,89410.0,0.00249087]
[1765717274495,0.05273519,89411.0,89410.0,0.000878]
[1765717274902,0.07037519,89411.0,89410.0,0.000878]
[1765717276031,0.12039358,89411.0,89410.0,0.000878]
[1765717276725,0.20634619,89411.0,89410.0,0.000878]
[1765717276927,0.12039358,89411.0,89410.0,0.000878]
[1765717277854,0.11639358,89411.0,89410.0,0.000878]
[1765717278032,0.10839358,89411.0,89410.0,0.000878]
[1765717278377,0.10939358,89411.0,89410.0,0.004878]
[1765717278785,0.13735434,89411.0,89410.0,0.004878]
[1765717279940,0.42805434,89411.0,89410.0,0.004878]
[1765717280166,0.42805434,89411.0,89400.0,0.0029]
[1765717280167,0.05001839,89401.0,89400.0,0.0029]
[1765717280370,0.61083953,89401.0,89400.0,0.0029]
[1765717280571,0.63459953,89401.0,89400.0,0.0029]
[1765717280774,0.63459953,89401.0,89400.0,0.00320285]
[1765717281329,0.63759953,89401.0,89400.0,0.00320285]
[1765717282168,0.64559953,89401.0,89400.0,0.00320285]
[1765717282285,0.27375456,89391.0,89390.0,0.07894728]
[1765717282488,0.32016456,89391.0,89390.0,0.07894728]
[1765717282727,0.34392456,89391.0,89390.0,0.07894728]
[1765717283076,0.32016456,89391.0,89390.0,0.07894728]
[1765717283283,0.34392456,89391.0,89390.0,0.07894728]
[1765717283498,0.05001839,89391.0,89390.0,0.07894728]
[1765717283700,0.06765839,89391.0,89390.0,0.07894728]
[1765717284344,0.07765839,89391.0,89390.0,0.07894728]
[1765717284505,0.09424839,89391.0,89390.0,0.07894728]
[1765717284708,0.11700839,89391.0,89390.0,0.07894728]
[1765717285110,0.08165839,89391.0,89390.0,0.07994728]
[1765717285534,0.07665839,89391.0,89390.0,0.07894728]
[1765717285880,0.06765839,89391.0,89390.0,0.08194728]
[1765717286083,0.06865839,89391.0,89390.0,0.08194728]
[1765717286289,0.11206554,89394.0,89391.0,0.22373617]
[1765717286535,0.11206554,89394.0,89393.0,0.23741116]
[1765717286741,0.11206554,89394.0,89393.0,0.25270403]
[1765717286943,0.11206554,89394.0,89393.0,0.23902403]
[1765717287142,0.11206554,89394.0,89393.0,0.01529287]
[1765717288201,0.12206554,89394.0,89393.0,0.00161287]
[1765717288633,0.13837554,89394.0,89393.0,0.00161287]
[1765717288825,0.12206554,89394.0,89393.0,0.00161287]
[1765717291407,0.15003162,89394.0,89393.0,0.00161287]
[1765717292385,0.22373617,89391.0,89390.0,0.07894728]
[1765717293911,0.22673617,89391.0,89390.0,0.07894728]
[1765717294315,0.28375456,89391.0,89390.0,0.07925017]
[1765717294527,0.31276456,89391.0,89390.0,0.07925017]
[1765717294887,0.27775456,89391.0,89390.0,0.08025017]
[1765717295291,0.05001839,89391.0,89390.0,0.10761017]
[1765717295497,0.05101839,89391.0,89390.0,0.10661017]
[1765717295710,0.001,89391.0,89390.0,0.10822304]
[1765717295918,0.0111858,89399.0,89395.0,0.0111863]
[1765717296114,0.22371865,89398.0,89392.0,0.01118668]
[1765717296319,0.01118618,89396.0,89393.0,0.01118655]
[1765717296519,0.23490458,89398.0,89393.0,0.01118655]
[1765717296959,0.01118605,89397.0,89393.0,0.01118655]
[1765717297722,0.01118618,89396.0,89393.0,0.01118655]
[1765717297936,0.01118618,89396.0,89390.0,0.08056015]
[1765717297937,0.01118655,89393.0,89390.0,0.08056015]
[1765717298144,0.01626,89391.0,89390.0,0.08056015]